[Event "Late-Titled-Tuesday-Blitz-May-28-2024"]
[Site "Chess.com"]
[Date "2024.05.28"]
[Round "6"]
[White "MatthewG-p4p"]
[Black "Polish_fighter3000"]
[Result "1/2-1/2"]
[WhiteElo "2855"]
[BlackElo "3108"]
[TimeControl "180+1"]
[EndTime "15:08:53 PDT"]
[Termination "Game drawn by repetition"]

1. e4 {[%clk 0:03:00.9]} 1... e5 {[%clk 0:02:58.4]} 2. Nf3 {[%clk 0:03:00.7]}
2... Nc6 {[%clk 0:02:59.1]} 3. d4 {[%clk 0:03:00.8]} 3... exd4 {[%clk
0:02:58.6]} 4. c3 {[%clk 0:03:01.3]} 4... dxc3 {[%clk 0:02:55.8]} 5. Nxc3 {[%clk
0:03:02.2]} 5... Bb4 {[%clk 0:02:55.9]} 6. Bc4 {[%clk 0:03:01.4]} 6... d6 {[%clk
0:02:56.3]} 7. Qb3 {[%clk 0:03:01.3]} 7... Qe7 {[%clk 0:02:49.9]} 8. O-O {[%clk
0:02:55.7]} 8... Bxc3 {[%clk 0:02:47.2]} 9. bxc3 {[%clk 0:02:56.6]} 9... Nf6
{[%clk 0:02:47.4]} 10. e5 {[%clk 0:02:47.3]} 10... Nxe5 {[%clk 0:02:46.6]} 11.
Nxe5 {[%clk 0:02:46.4]} 11... dxe5 {[%clk 0:02:47.5]} 12. Ba3 {[%clk 0:02:46.5]}
12... c5 {[%clk 0:02:44.6]} 13. Bb5+ {[%clk 0:02:46.5]} 13... Bd7 {[%clk
0:02:36.5]} 14. Bxd7+ {[%clk 0:02:46.3]} 14... Qxd7 {[%clk 0:02:37.4]} 15. Bxc5
{[%clk 0:02:46.7]} 15... Qc6 {[%clk 0:02:37.9]} 16. Ba3 {[%clk 0:02:32.7]} 16...
O-O-O {[%clk 0:02:32.4]} 17. Qxf7 {[%clk 0:02:27.2]} 17... Rd7 {[%clk
0:02:29.5]} 18. Qb3 {[%clk 0:02:25.2]} 18... Rhd8 {[%clk 0:02:29.7]} 19. Rfe1
{[%clk 0:02:23.5]} 19... e4 {[%clk 0:02:29.4]} 20. Rab1 {[%clk 0:02:14.4]} 20...
Rd3 {[%clk 0:02:18.9]} 21. Be7 {[%clk 0:02:03.5]} 21... Re8 {[%clk 0:01:48.6]}
22. Bxf6 {[%clk 0:02:01.6]} 22... gxf6 {[%clk 0:01:49.5]} 23. Qf7 {[%clk
0:01:58]} 23... Re5 {[%clk 0:01:35.2]} 24. Qxh7 {[%clk 0:01:52.1]} 24... a6
{[%clk 0:01:32.6]} 25. c4 {[%clk 0:01:45.6]} 25... Rd7 {[%clk 0:01:24.4]} 26.
Qg8+ {[%clk 0:01:34.1]} 26... Rd8 {[%clk 0:01:23.8]} 27. Qg4+ {[%clk 0:01:31.6]}
27... Kb8 {[%clk 0:01:21.6]} 28. Qf4 {[%clk 0:01:21.7]} 28... Ka8 {[%clk
0:01:20.1]} 29. Red1 {[%clk 0:01:11.3]} 29... Rxd1+ {[%clk 0:01:03.3]} 30. Rxd1
{[%clk 0:01:11.1]} 30... Qxc4 {[%clk 0:01:03.7]} 31. Qxf6 {[%clk 0:00:58.9]}
31... Rd5 {[%clk 0:01:03.4]} 32. Re1 {[%clk 0:00:47.9]} 32... Qxa2 {[%clk
0:00:55.8]} 33. h4 {[%clk 0:00:48.1]} 33... Qc2 {[%clk 0:00:44.9]} 34. Qf7
{[%clk 0:00:26.5]} 34... Re5 {[%clk 0:00:15.5]} 35. h5 {[%clk 0:00:20.9]} 35...
e3 {[%clk 0:00:05.1]} 36. Rxe3 {[%clk 0:00:16.9]} 36... Qd1+ {[%clk 0:00:04.5]}
37. Kh2 {[%clk 0:00:15.3]} 37... Rxh5+ {[%clk 0:00:04.7]} 38. Rh3 {[%clk
0:00:12.9]} 38... Qd6+ {[%clk 0:00:03.2]} 39. g3 {[%clk 0:00:12.5]} 39... Rxh3+
{[%clk 0:00:03]} 40. Kxh3 {[%clk 0:00:13.4]} 40... a5 {[%clk 0:00:03.2]} 41. g4
{[%clk 0:00:10.2]} 41... Ka7 {[%clk 0:00:02.4]} 42. g5 {[%clk 0:00:09.8]} 42...
Qd3+ {[%clk 0:00:01]} 43. f3 {[%clk 0:00:08.6]} 43... Qf1+ {[%clk 0:00:01]} 44.
Kg4 {[%clk 0:00:09]} 44... Qg1+ {[%clk 0:00:01.3]} 45. Kh5 {[%clk 0:00:09.8]}
45... Qh2+ {[%clk 0:00:01]} 46. Kg6 {[%clk 0:00:10.5]} 46... a4 {[%clk 0:00:01]}
47. Qd7 {[%clk 0:00:05.9]} 47... Qc2+ {[%clk 0:00:01]} 48. Kh6 {[%clk
0:00:03.6]} 48... a3 {[%clk 0:00:01.1]} 49. Qd4+ {[%clk 0:00:03.9]} 49... b6
{[%clk 0:00:01.5]} 50. g6 {[%clk 0:00:04.7]} 50... a2 {[%clk 0:00:01.2]} 51. g7
{[%clk 0:00:05.4]} 51... Qh2+ {[%clk 0:00:01.1]} 52. Kg6 {[%clk 0:00:05.8]}
52... Qg2+ {[%clk 0:00:01.1]} 53. Kh7 {[%clk 0:00:05.2]} 53... Qh3+ {[%clk
0:00:01.4]} 54. Kg6 {[%clk 0:00:05.4]} 54... Qg3+ {[%clk 0:00:01.3]} 55. Qg4
{[%clk 0:00:05.6]} 55... Qxg4+ {[%clk 0:00:01.3]} 56. fxg4 {[%clk 0:00:06.5]}
56... a1=Q {[%clk 0:00:01.8]} 57. g8=Q {[%clk 0:00:07.2]} 57... Qb1+ {[%clk
0:00:02.3]} 58. Kh6 {[%clk 0:00:07.6]} 58... Qh1+ {[%clk 0:00:02.2]} 59. Kg7
{[%clk 0:00:07.6]} 59... Qa1+ {[%clk 0:00:02.2]} 60. Kg6 {[%clk 0:00:06.9]}
60... Qb1+ {[%clk 0:00:02]} 61. Kh6 {[%clk 0:00:07.3]} 61... Qh1+ {[%clk
0:00:01.7]} 62. Kg7 {[%clk 0:00:07.7]} 62... Qb7+ {[%clk 0:00:01]} 63. Kh6
{[%clk 0:00:05.5]} 63... Qc6+ {[%clk 0:00:01]} 64. Kh7 {[%clk 0:00:05.1]} 64...
Qc2+ {[%clk 0:00:01]} 65. Kh6 {[%clk 0:00:05.8]} 65... b5 {[%clk 0:00:01]} 66.
Qg7+ {[%clk 0:00:04.7]} 66... Ka6 {[%clk 0:00:01]} 67. Qf6+ {[%clk 0:00:05.3]}
67... Ka5 {[%clk 0:00:01.2]} 68. g5 {[%clk 0:00:06.1]} 68... Qh2+ {[%clk
0:00:01]} 69. Kg7 {[%clk 0:00:05.9]} 69... b4 {[%clk 0:00:01.5]} 70. g6 {[%clk
0:00:06]} 70... Ka4 {[%clk 0:00:01.2]} 71. Kf7 {[%clk 0:00:05.7]} 71... Qc7+
{[%clk 0:00:01]} 72. Qe7 {[%clk 0:00:06.4]} 72... Qc4+ {[%clk 0:00:01.3]} 73.
Qe6 {[%clk 0:00:06.9]} 73... Qf4+ {[%clk 0:00:01.4]} 74. Kg8 {[%clk 0:00:07.2]}
74... b3 {[%clk 0:00:01.6]} 75. g7 {[%clk 0:00:06.7]} 75... Qb8+ {[%clk
0:00:02.1]} 76. Kf7 {[%clk 0:00:06.7]} 76... Qf4+ {[%clk 0:00:02.3]} 77. Ke7
{[%clk 0:00:07.2]} 77... Qg5+ {[%clk 0:00:02.2]} 78. Qf6 {[%clk 0:00:07.6]}
78... Qc5+ {[%clk 0:00:01.4]} 79. Kf7 {[%clk 0:00:07.9]} 79... Qd5+ {[%clk
0:00:01.4]} 80. Qe6 {[%clk 0:00:08.2]} 80... Qf3+ {[%clk 0:00:01.6]} 81. Ke7
{[%clk 0:00:08.3]} 81... Qb7+ {[%clk 0:00:01.3]} 82. Kf6 {[%clk 0:00:09.1]}
82... Qf3+ {[%clk 0:00:01.3]} 83. Kg6 {[%clk 0:00:09.7]} 83... Qg2+ {[%clk
0:00:01.5]} 84. Kh6 {[%clk 0:00:09.7]} 84... Qh2+ {[%clk 0:00:01.7]} 85. Kg6
{[%clk 0:00:10.3]} 85... Qg2+ {[%clk 0:00:02.1]} 86. Kh7 {[%clk 0:00:11]} 86...
Qh1+ {[%clk 0:00:02]} 87. Kg6 {[%clk 0:00:11.3]} 87... Qg2+ {[%clk 0:00:02.1]}
1/2-1/2

[Event "Late-Titled-Tuesday-Blitz-May-28-2024"]
[Site "Chess.com"]
[Date "2024.05.28"]
[Round "6"]
[White "crazy_but_lazy"]
[Black "Cambek64"]
[Result "0-1"]
[WhiteElo "2672"]
[BlackElo "2535"]
[TimeControl "180+1"]
[EndTime "15:09:20 PDT"]
[Termination "Cambek64 won by checkmate"]

1. d4 {[%clk 0:03:00.9]} 1... b5 {[%clk 0:02:57.7]} 2. e4 {[%clk 0:02:52]} 2...
Bb7 {[%clk 0:02:57.7]} 3. Bd3 {[%clk 0:02:52.1]} 3... e6 {[%clk 0:02:57]} 4. Nf3
{[%clk 0:02:49.7]} 4... a6 {[%clk 0:02:55.4]} 5. O-O {[%clk 0:02:47.9]} 5... Nf6
{[%clk 0:02:55.9]} 6. Re1 {[%clk 0:02:48.2]} 6... Be7 {[%clk 0:02:55.5]} 7. Nbd2
{[%clk 0:02:47.9]} 7... d5 {[%clk 0:02:50.1]} 8. e5 {[%clk 0:02:47.3]} 8... Nfd7
{[%clk 0:02:50.8]} 9. Nf1 {[%clk 0:02:45.9]} 9... c5 {[%clk 0:02:50.9]} 10. c3
{[%clk 0:02:45.9]} 10... Nc6 {[%clk 0:02:49.9]} 11. Ng3 {[%clk 0:02:38.8]} 11...
g6 {[%clk 0:02:48.8]} 12. Be3 {[%clk 0:02:31.8]} 12... h5 {[%clk 0:02:44.3]} 13.
h3 {[%clk 0:02:24.8]} 13... cxd4 {[%clk 0:02:40.9]} 14. cxd4 {[%clk 0:02:23.2]}
14... Nb6 {[%clk 0:02:40.6]} 15. Ne2 {[%clk 0:01:56.2]} 15... Nc4 {[%clk
0:02:34.6]} 16. Bc1 {[%clk 0:01:52.7]} 16... Qb6 {[%clk 0:02:24]} 17. a4 {[%clk
0:01:34.4]} 17... b4 {[%clk 0:02:22.6]} 18. b3 {[%clk 0:01:30.8]} 18... Na3
{[%clk 0:02:20.6]} 19. Be3 {[%clk 0:01:24.6]} 19... a5 {[%clk 0:02:14.6]} 20.
Nf4 {[%clk 0:01:03.1]} 20... Ba6 {[%clk 0:02:10.4]} 21. Rc1 {[%clk 0:00:55.8]}
21... Kd7 {[%clk 0:02:02.7]} 22. Bxa6 {[%clk 0:00:52.3]} 22... Qxa6 {[%clk
0:02:02.4]} 23. Nd3 {[%clk 0:00:53.2]} 23... Rac8 {[%clk 0:01:53.3]} 24. Qd2
{[%clk 0:00:43.8]} 24... Na7 {[%clk 0:01:47.2]} 25. Bg5 {[%clk 0:00:43.4]} 25...
Rxc1 {[%clk 0:01:46.5]} 26. Rxc1 {[%clk 0:00:44.3]} 26... Rc8 {[%clk 0:01:42.8]}
27. Bxe7 {[%clk 0:00:41.6]} 27... Kxe7 {[%clk 0:01:34.5]} 28. Nc5 {[%clk
0:00:36.3]} 28... Qc6 {[%clk 0:01:30.7]} 29. Qf4 {[%clk 0:00:31.6]} 29... Qe8
{[%clk 0:01:21.7]} 30. Qf6+ {[%clk 0:00:15.4]} 30... Kf8 {[%clk 0:01:20.1]} 31.
Ng5 {[%clk 0:00:16.3]} 31... Kg8 {[%clk 0:01:19.6]} 32. Re1 {[%clk 0:00:12.8]}
32... Nc6 {[%clk 0:01:17]} 33. Rd1 {[%clk 0:00:11.3]} 33... Nc2 {[%clk
0:01:15.7]} 34. Nb7 {[%clk 0:00:10.1]} 34... Qe7 {[%clk 0:01:13.1]} 35. Nd6
{[%clk 0:00:10.5]} 35... Qxf6 {[%clk 0:01:11.9]} 36. exf6 {[%clk 0:00:11.4]}
36... Rd8 {[%clk 0:01:09.5]} 37. Nb5 {[%clk 0:00:11.3]} 37... Kf8 {[%clk
0:00:54.8]} 38. Nf3 {[%clk 0:00:11.4]} 38... Na3 {[%clk 0:00:50.6]} 39. Rc1
{[%clk 0:00:11.5]} 39... Nxb5 {[%clk 0:00:49.4]} 40. axb5 {[%clk 0:00:11.1]}
40... Nb8 {[%clk 0:00:44.4]} 41. Ra1 {[%clk 0:00:08.8]} 41... Nd7 {[%clk
0:00:41.5]} 42. Rxa5 {[%clk 0:00:09]} 42... Nxf6 {[%clk 0:00:41.8]} 43. Ne5
{[%clk 0:00:08.2]} 43... Nd7 {[%clk 0:00:38.9]} 44. Nc6 {[%clk 0:00:08.1]} 44...
Rc8 {[%clk 0:00:38]} 45. Ra7 {[%clk 0:00:08.2]} 45... Ke8 {[%clk 0:00:38.1]} 46.
Kf1 {[%clk 0:00:07.2]} 46... Nf6 {[%clk 0:00:33.1]} 47. f3 {[%clk 0:00:06.5]}
47... h4 {[%clk 0:00:30.4]} 48. Kf2 {[%clk 0:00:03.5]} 48... Nh5 {[%clk
0:00:28.9]} 49. b6 {[%clk 0:00:03.9]} 49... Rxc6 {[%clk 0:00:28]} 50. b7 {[%clk
0:00:04.4]} 50... Rb6 {[%clk 0:00:28.6]} 51. Ra8+ {[%clk 0:00:04.4]} 51... Kd7
{[%clk 0:00:27.7]} 52. b8=Q {[%clk 0:00:05.3]} 52... Rxb8 {[%clk 0:00:27.4]} 53.
Rxb8 {[%clk 0:00:06.2]} 53... Nf4 {[%clk 0:00:27.4]} 54. Rb7+ {[%clk 0:00:06.6]}
54... Ke8 {[%clk 0:00:26.2]} 55. Kf1 {[%clk 0:00:06.4]} 55... Nd3 {[%clk
0:00:22.5]} 56. Ke2 {[%clk 0:00:05.2]} 56... Nf4+ {[%clk 0:00:21.9]} 57. Kf2
{[%clk 0:00:05.7]} 57... g5 {[%clk 0:00:21.1]} 58. g3 {[%clk 0:00:04.7]} 58...
hxg3+ {[%clk 0:00:18]} 59. Kxg3 {[%clk 0:00:05.6]} 59... Ne2+ {[%clk 0:00:18.4]}
60. Kg4 {[%clk 0:00:05.8]} 60... Nxd4 {[%clk 0:00:19]} 61. Rxb4 {[%clk
0:00:06.1]} 61... e5 {[%clk 0:00:13.1]} 62. Rb7 {[%clk 0:00:05.7]} 62... Ne6
{[%clk 0:00:05.7]} 63. Kg3 {[%clk 0:00:03]} 63... d4 {[%clk 0:00:05]} 64. Kf2
{[%clk 0:00:03]} 64... Nf4 {[%clk 0:00:04.8]} 65. b4 {[%clk 0:00:02.6]} 65...
Nxh3+ {[%clk 0:00:04.6]} 66. Ke1 {[%clk 0:00:02.7]} 66... Ng1 {[%clk 0:00:03.5]}
67. Kf2 {[%clk 0:00:01.8]} 67... Nh3+ {[%clk 0:00:03.9]} 68. Ke2 {[%clk
0:00:01.8]} 68... Nf4+ {[%clk 0:00:02.9]} 69. Kd2 {[%clk 0:00:02.2]} 69... g4
{[%clk 0:00:02.9]} 70. fxg4 {[%clk 0:00:02.1]} 70... e4 {[%clk 0:00:03]} 71. b5
{[%clk 0:00:02.5]} 71... e3+ {[%clk 0:00:03.5]} 72. Ke1 {[%clk 0:00:02.3]} 72...
d3 {[%clk 0:00:03.5]} 73. Ra7 {[%clk 0:00:02.7]} 73... d2+ {[%clk 0:00:03.8]}
74. Kd1 {[%clk 0:00:03]} 74... Nd3 {[%clk 0:00:03.2]} 75. Ra3 {[%clk 0:00:02.4]}
75... Nb2+ {[%clk 0:00:02.5]} 76. Kc2 {[%clk 0:00:02.7]} 76... d1=Q+ {[%clk
0:00:02.6]} 77. Kxb2 {[%clk 0:00:03.4]} 77... e2 {[%clk 0:00:02.8]} 78. Re3+
{[%clk 0:00:03.3]} 78... Kf8 {[%clk 0:00:01.9]} 79. b6 {[%clk 0:00:04.2]} 79...
e1=Q {[%clk 0:00:01.7]} 80. Rxe1 {[%clk 0:00:05.1]} 80... Qxe1 {[%clk
0:00:01.9]} 81. b7 {[%clk 0:00:06]} 81... Qb4+ {[%clk 0:00:02]} 82. Kc2 {[%clk
0:00:05.9]} 82... Qxb7 {[%clk 0:00:02.4]} 83. Kd3 {[%clk 0:00:06.8]} 83... Qg2
{[%clk 0:00:02.7]} 84. g5 {[%clk 0:00:07.5]} 84... Qxg5 {[%clk 0:00:03]} 85. Ke4
{[%clk 0:00:08.4]} 85... Qg6+ {[%clk 0:00:03.3]} 86. Kf3 {[%clk 0:00:09.3]}
86... Ke7 {[%clk 0:00:03.8]} 87. Kf4 {[%clk 0:00:10.2]} 87... Ke6 {[%clk
0:00:04.3]} 88. Kf3 {[%clk 0:00:10.5]} 88... Ke5 {[%clk 0:00:05]} 89. Ke3 {[%clk
0:00:11]} 89... Qg3+ {[%clk 0:00:04.7]} 90. Ke2 {[%clk 0:00:11.1]} 90... Ke4
{[%clk 0:00:05.3]} 91. Kf1 {[%clk 0:00:12]} 91... Qh2 {[%clk 0:00:05.3]} 92. Ke1
{[%clk 0:00:12.3]} 92... Ke3 {[%clk 0:00:05.6]} 93. Kd1 {[%clk 0:00:13.2]} 93...
Qd2# {[%clk 0:00:05.8]} 0-1

[Event "Late-Titled-Tuesday-Blitz-May-28-2024"]
[Site "Chess.com"]
[Date "2024.05.28"]
[Round "6"]
[White "Jarming"]
[Black "ExchangeAB"]
[Result "0-1"]
[WhiteElo "2632"]
[BlackElo "2501"]
[TimeControl "180+1"]
[EndTime "15:10:04 PDT"]
[Termination "ExchangeAB won on time"]

1. d4 {[%clk 0:03:00.9]} 1... d5 {[%clk 0:03:00]} 2. c4 {[%clk 0:02:59.9]} 2...
c6 {[%clk 0:03:00.4]} 3. Nc3 {[%clk 0:02:59.1]} 3... Nf6 {[%clk 0:03:00.3]} 4.
Nf3 {[%clk 0:02:58.7]} 4... dxc4 {[%clk 0:03:00.5]} 5. a4 {[%clk 0:02:57.4]}
5... Bf5 {[%clk 0:03:00.3]} 6. e3 {[%clk 0:02:54.6]} 6... e6 {[%clk 0:03:00.3]}
7. Bxc4 {[%clk 0:02:54.3]} 7... Be7 {[%clk 0:03:00.1]} 8. Qe2 {[%clk 0:02:54.4]}
8... Ne4 {[%clk 0:02:59.1]} 9. O-O {[%clk 0:02:50.8]} 9... Nd7 {[%clk 0:02:57]}
10. Rd1 {[%clk 0:02:49.5]} 10... O-O {[%clk 0:02:56.1]} 11. h3 {[%clk
0:02:48.8]} 11... Ndf6 {[%clk 0:02:52.8]} 12. Ne5 {[%clk 0:02:46.8]} 12... Rc8
{[%clk 0:02:42.5]} 13. a5 {[%clk 0:02:39.4]} 13... Qc7 {[%clk 0:02:34.5]} 14.
Bd2 {[%clk 0:02:22.3]} 14... Nxd2 {[%clk 0:02:24.8]} 15. Rxd2 {[%clk 0:02:20]}
15... Ne4 {[%clk 0:02:23.5]} 16. Nxe4 {[%clk 0:02:17.5]} 16... Bxe4 {[%clk
0:02:24.4]} 17. f3 {[%clk 0:02:16.7]} 17... Bg6 {[%clk 0:02:21.7]} 18. a6 {[%clk
0:02:02]} 18... b6 {[%clk 0:02:17]} 19. Bd3 {[%clk 0:01:56.4]} 19... Bd6 {[%clk
0:01:51.6]} 20. f4 {[%clk 0:01:51.5]} 20... Bxe5 {[%clk 0:01:46.4]} 21. dxe5
{[%clk 0:01:47.4]} 21... Bxd3 {[%clk 0:01:40]} 22. Rxd3 {[%clk 0:01:46.1]} 22...
b5 {[%clk 0:01:35.7]} 23. Rd6 {[%clk 0:01:42.9]} 23... Qb6 {[%clk 0:01:35.1]}
24. Qd3 {[%clk 0:01:39.9]} 24... g6 {[%clk 0:01:28.1]} 25. Kh2 {[%clk
0:01:25.4]} 25... Rfd8 {[%clk 0:01:27.1]} 26. e4 {[%clk 0:01:24.8]} 26... Rf8
{[%clk 0:01:07.8]} 27. b4 {[%clk 0:01:11.7]} 27... Qf2 {[%clk 0:01:02.6]} 28.
Rf1 {[%clk 0:01:09.7]} 28... Qb6 {[%clk 0:00:59.3]} 29. f5 {[%clk 0:01:04.9]}
29... Qxa6 {[%clk 0:00:52.5]} 30. f6 {[%clk 0:01:03.8]} 30... h6 {[%clk
0:00:36.9]} 31. Rf4 {[%clk 0:01:01]} 31... Qa1 {[%clk 0:00:31.6]} 32. Rd4 {[%clk
0:00:55.5]} 32... c5 {[%clk 0:00:26.2]} 33. bxc5 {[%clk 0:00:55.4]} 33... Rxc5
{[%clk 0:00:25.9]} 34. Rh4 {[%clk 0:00:56.3]} 34... Qc1 {[%clk 0:00:21.6]} 35.
Rd8 {[%clk 0:00:37.9]} 35... Rc8 {[%clk 0:00:21.7]} 36. Rxf8+ {[%clk 0:00:37.9]}
36... Rxf8 {[%clk 0:00:21.2]} 37. Rg4 {[%clk 0:00:38.4]} 37... h5 {[%clk
0:00:18.7]} 38. Rg3 {[%clk 0:00:31.8]} 38... Qf4 {[%clk 0:00:18.8]} 39. Kh1
{[%clk 0:00:32]} 39... Qxe5 {[%clk 0:00:18.3]} 40. Rf3 {[%clk 0:00:31.9]} 40...
a5 {[%clk 0:00:16.9]} 41. Qd2 {[%clk 0:00:32]} 41... Kh7 {[%clk 0:00:16.6]} 42.
Qxa5 {[%clk 0:00:32.2]} 42... Rc8 {[%clk 0:00:13.7]} 43. Rf1 {[%clk 0:00:28.2]}
43... Qc7 {[%clk 0:00:11.7]} 44. Qxb5 {[%clk 0:00:27.6]} 44... Qc4 {[%clk
0:00:11]} 45. Qb1 {[%clk 0:00:25.4]} 45... Qc2 {[%clk 0:00:11.1]} 46. Qe1 {[%clk
0:00:22.7]} 46... Qc3 {[%clk 0:00:09.1]} 47. Qf2 {[%clk 0:00:18.9]} 47... Qc5
{[%clk 0:00:08.2]} 48. Qf4 {[%clk 0:00:18.4]} 48... Qc7 {[%clk 0:00:07.3]} 49.
e5 {[%clk 0:00:18.5]} 49... Qc4 {[%clk 0:00:06.7]} 50. Qf2 {[%clk 0:00:17.1]}
50... Qc5 {[%clk 0:00:06.6]} 51. Qf3 {[%clk 0:00:17]} 51... Qxe5 {[%clk
0:00:05.9]} 52. Qb7 {[%clk 0:00:15.1]} 52... Qc7 {[%clk 0:00:05.9]} 53. Qa6
{[%clk 0:00:14.8]} 53... Qc6 {[%clk 0:00:06.1]} 54. Qa7 {[%clk 0:00:14.5]} 54...
Qc7 {[%clk 0:00:06.6]} 55. Qa6 {[%clk 0:00:14.7]} 55... Qc4 {[%clk 0:00:06.9]}
56. Qa1 {[%clk 0:00:14.1]} 56... g5 {[%clk 0:00:06.8]} 57. Qb1+ {[%clk
0:00:13.8]} 57... Qc2 {[%clk 0:00:07]} 58. Qe1 {[%clk 0:00:14.7]} 58... Kg6
{[%clk 0:00:06.9]} 59. Qa5 {[%clk 0:00:12.8]} 59... Rc5 {[%clk 0:00:06.4]} 60.
Qd8 {[%clk 0:00:11.7]} 60... Rc8 {[%clk 0:00:06.3]} 61. Qe7 {[%clk 0:00:11.6]}
61... Qc7 {[%clk 0:00:06.6]} 62. Qb4 {[%clk 0:00:11.1]} 62... e5 {[%clk
0:00:04.6]} 63. Rf2 {[%clk 0:00:09.2]} 63... e4 {[%clk 0:00:04.3]} 64. Qxe4+
{[%clk 0:00:09.3]} 64... Kh6 {[%clk 0:00:04.2]} 65. Qe7 {[%clk 0:00:05.8]} 65...
Qc1+ {[%clk 0:00:04.5]} 66. Kh2 {[%clk 0:00:05.8]} 66... Qc7+ {[%clk 0:00:05.2]}
67. g3 {[%clk 0:00:04.8]} 67... Qxe7 {[%clk 0:00:04.3]} 68. fxe7 {[%clk
0:00:05.7]} 68... Kg6 {[%clk 0:00:04.9]} 69. Re2 {[%clk 0:00:06.2]} 69... Re8
{[%clk 0:00:05.3]} 70. g4 {[%clk 0:00:07]} 70... hxg4 {[%clk 0:00:05.3]} 71.
hxg4 {[%clk 0:00:07.9]} 71... f6 {[%clk 0:00:06.1]} 72. Kg3 {[%clk 0:00:08.6]}
72... Kf7 {[%clk 0:00:07]} 73. Rb2 {[%clk 0:00:08.3]} 73... Rxe7 {[%clk
0:00:07.9]} 74. Kf3 {[%clk 0:00:08.6]} 74... Kg6 {[%clk 0:00:08.3]} 75. Rb8
{[%clk 0:00:08.7]} 75... Re6 {[%clk 0:00:08.7]} 76. Rg8+ {[%clk 0:00:08.6]}
76... Kf7 {[%clk 0:00:09.2]} 77. Ra8 {[%clk 0:00:09.5]} 77... Rd6 {[%clk
0:00:09.6]} 78. Ke4 {[%clk 0:00:09.2]} 78... Ke6 {[%clk 0:00:10]} 79. Re8+
{[%clk 0:00:08.4]} 79... Kf7 {[%clk 0:00:10.5]} 80. Ra8 {[%clk 0:00:09.3]} 80...
Rb6 {[%clk 0:00:11]} 81. Ra4 {[%clk 0:00:06.1]} 81... Rb5 {[%clk 0:00:11.1]} 82.
Ra8 {[%clk 0:00:05.7]} 82... Rb4+ {[%clk 0:00:10.8]} 83. Kf3 {[%clk 0:00:06.1]}
83... Rf4+ {[%clk 0:00:11]} 84. Kg3 {[%clk 0:00:07]} 84... Rd4 {[%clk
0:00:11.2]} 85. Ra6 {[%clk 0:00:07.1]} 85... Rd5 {[%clk 0:00:11]} 86. Kf3 {[%clk
0:00:07]} 86... Rd4 {[%clk 0:00:11.4]} 87. Kg3 {[%clk 0:00:06.8]} 87... Ke7
{[%clk 0:00:12]} 88. Ra7+ {[%clk 0:00:06.6]} 88... Rd7 {[%clk 0:00:12]} 89. Ra8
{[%clk 0:00:06.9]} 89... Ke6 {[%clk 0:00:12.5]} 90. Kf3 {[%clk 0:00:07.4]} 90...
Rd6 {[%clk 0:00:11.8]} 91. Ra5 {[%clk 0:00:07.3]} 91... Rd5 {[%clk 0:00:11.3]}
92. Ra6+ {[%clk 0:00:07.2]} 92... Ke5 {[%clk 0:00:11.9]} 93. Ra8 {[%clk
0:00:08.1]} 93... Rd3+ {[%clk 0:00:12.1]} 94. Kg2 {[%clk 0:00:07.1]} 94... Kf4
{[%clk 0:00:12.4]} 95. Ra4+ {[%clk 0:00:07.4]} 95... Ke5 {[%clk 0:00:10.3]} 96.
Kf2 {[%clk 0:00:07.7]} 96... Rd4 {[%clk 0:00:10.1]} 97. Ra5+ {[%clk 0:00:06.7]}
97... Rd5 {[%clk 0:00:08.3]} 98. Ra6 {[%clk 0:00:07.6]} 98... Kf4 {[%clk
0:00:08.1]} 99. Rxf6+ {[%clk 0:00:07]} 99... Kxg4 {[%clk 0:00:08.4]} 100. Ra6
{[%clk 0:00:05.6]} 100... Rd2+ {[%clk 0:00:07.8]} 101. Ke3 {[%clk 0:00:06.1]}
101... Rg2 {[%clk 0:00:06.3]} 102. Ra8 {[%clk 0:00:06]} 102... Kg3 {[%clk
0:00:06.4]} 103. Rf8 {[%clk 0:00:02.9]} 103... g4 {[%clk 0:00:06.8]} 104. Rh8
{[%clk 0:00:01.4]} 104... Ra2 {[%clk 0:00:06.7]} 105. Rg8 {[%clk 0:00:02.1]}
105... Ra3+ {[%clk 0:00:05.4]} 106. Ke2 {[%clk 0:00:03]} 106... Rf3 {[%clk
0:00:04.9]} 107. Rg7 {[%clk 0:00:02.8]} 107... Rf4 {[%clk 0:00:05.1]} 108. Ke3
{[%clk 0:00:01.2]} 108... Rf5 {[%clk 0:00:04.8]} 109. Ke2 {[%clk 0:00:02.1]}
109... Kh3 {[%clk 0:00:04.8]} 110. Rg8 {[%clk 0:00:03]} 110... g3 {[%clk
0:00:04.8]} 111. Rh8+ {[%clk 0:00:03.3]} 111... Kg2 {[%clk 0:00:05.3]} 112. Ke1
{[%clk 0:00:03.9]} 112... Kg1 {[%clk 0:00:05]} 113. Rg8 {[%clk 0:00:03.4]}
113... Re5+ {[%clk 0:00:05.1]} 114. Kd2 {[%clk 0:00:03.8]} 114... g2 {[%clk
0:00:05.6]} 115. Rh8 {[%clk 0:00:04.3]} 115... Kf2 {[%clk 0:00:05.8]} 116. Rf8+
{[%clk 0:00:04.5]} 116... Kg3 {[%clk 0:00:06.3]} 117. Rg8+ {[%clk 0:00:05.4]}
117... Kf3 {[%clk 0:00:06.8]} 118. Rf8+ {[%clk 0:00:05.8]} 118... Kg4 {[%clk
0:00:07.3]} 119. Rg8+ {[%clk 0:00:06.3]} 119... Rg5 {[%clk 0:00:08]} 0-1

[Event "Late-Titled-Tuesday-Blitz-May-28-2024"]
[Site "Chess.com"]
[Date "2024.05.28"]
[Round "7"]
[White "DonMicheleCorleone"]
[Black "H3nriqueTV"]
[Result "1-0"]
[WhiteElo "2504"]
[BlackElo "2366"]
[TimeControl "180+1"]
[EndTime "15:12:09 PDT"]
[Termination "DonMicheleCorleone won by resignation"]

1. e4 {[%clk 0:03:00.9]} 1... c5 {[%clk 0:02:58]} 2. c3 {[%clk 0:03:01]} 2... b6
{[%clk 0:02:56.9]} 3. d4 {[%clk 0:03:00.6]} 3... cxd4 {[%clk 0:02:57.8]} 4. cxd4
{[%clk 0:03:00.3]} 4... Bb7 {[%clk 0:02:57.8]} 5. Nc3 {[%clk 0:02:59.6]} 5... e6
{[%clk 0:02:58.3]} 6. Nf3 {[%clk 0:02:59.2]} 6... a6 {[%clk 0:02:59]} 7. Bd3
{[%clk 0:02:58.9]} 7... Bb4 {[%clk 0:02:59.3]} 8. O-O {[%clk 0:02:58.5]} 8... d6
{[%clk 0:02:55.5]} 9. Qe2 {[%clk 0:02:57.8]} 9... Nf6 {[%clk 0:02:55.6]} 10. Bg5
{[%clk 0:02:54.7]} 10... h6 {[%clk 0:02:54.2]} 11. Bh4 {[%clk 0:02:54.7]} 11...
g5 {[%clk 0:02:54.7]} 12. Bg3 {[%clk 0:02:54.9]} 12... Nc6 {[%clk 0:02:49.7]}
13. d5 {[%clk 0:02:46.7]} 13... Ne7 {[%clk 0:02:45.1]} 14. dxe6 {[%clk
0:02:38.3]} 14... fxe6 {[%clk 0:02:45.5]} 15. e5 {[%clk 0:02:38.9]} 15... Bxc3
{[%clk 0:02:41.6]} 16. exf6 {[%clk 0:02:36.1]} 16... Bxf6 {[%clk 0:02:42.5]} 17.
Qxe6 {[%clk 0:02:35.5]} 1-0